fUST/lending_fUST_20240717
["ID","MTS","AMOUNT","RATE_DAILY","PERIOD"]
[332408253,1721160638587,-500.0,0.00021917,2]
[332408254,1721160638596,-500.0,0.00021917,2]
[332408255,1721160638606,-500.0,0.00021917,2]
[332408256,1721160638618,-500.0,0.00021917,2]
[332408257,1721160638628,-500.0,0.00021917,2]
[332408258,1721160638637,-500.0,0.00021917,2]
[332408259,1721160638647,-500.0,0.00021917,2]
[332408260,1721160638658,-500.0,0.00021917,2]
[332408261,1721160638669,-500.0,0.00021917,2]
[332408262,1721160638680,-500.66455903,0.00021917,2]
[332408263,1721160638689,-500.0,0.00021917,2]
[332408264,1721160638698,-551.71990465,0.00021917,2]
[332408265,1721160638707,-500.0,0.00021917,2]
[332408266,1721160638717,-500.0,0.00021917,2]
[332408267,1721160638727,-500.0,0.00021917,2]
[332408268,1721160638737,-500.0,0.00021917,2]
[332408269,1721160638747,-500.0,0.00021917,2]
[332408270,1721160638759,-500.0,0.00021917,2]
[332408271,1721160638769,-740.94,0.00021917,2]
[332408272,1721160638779,-500.0,0.00021917,2]
[332408273,1721160638788,-500.0,0.00021917,2]
[332408274,1721160638797,-500.0,0.00021917,2]
[332408275,1721160638807,-1026.98,0.00021917,2]
[332408276,1721160638816,-500.0,0.00021917,2]
[332408277,1721160638828,-500.0,0.00021917,2]
[332408278,1721160638840,-500.0,0.00021917,2]
[332408279,1721160638851,-500.0,0.00021917,2]
[332408280,1721160638861,-383.27512815,0.00021917,2]
[332408281,1721160638871,-500.0,0.00021917,2]
[332408282,1721160638881,-500.0,0.00021917,2]
[332408283,1721160638891,-2265.53,0.00021917,2]
[332408284,1721160638903,-500.0,0.00021917,2]
[332408285,1721160638913,-500.0,0.00021917,2]
[332408286,1721160638923,-500.0,0.00021917,2]
[332408287,1721160638933,-500.0,0.00021917,2]
[332408288,1721160638943,-500.0,0.00021917,2]
[332408289,1721160638954,-500.0,0.00021917,2]
[332408290,1721160638964,-550.78093341,0.00021917,2]
[332408291,1721160638975,-500.0,0.00021917,2]
[332408292,1721160638987,-610.64,0.00021917,2]
[332408293,1721160638999,-500.0,0.00021917,2]
[332408294,1721160639011,-328.13678551,0.00021917,2]
[332408295,1721160639021,-500.0,0.00021917,2]
[332408296,1721160639033,-500.0,0.00021917,2]
[332408297,1721160639043,-1695.05,0.00021917,2]
[332408298,1721160639054,-530.75,0.00021917,2]
[332408299,1721160639065,-500.0,0.00021917,2]
[332408300,1721160639076,-500.0,0.00021917,2]
[332408301,1721160639086,-500.0,0.00021917,2]
[332408302,1721160639098,-572.97,0.00021917,2]
[332408303,1721160639107,-500.0,0.00021917,2]
[332408304,1721160639117,-500.0,0.00021917,2]
[332408305,1721160639127,-500.0,0.00021917,2]
[332408306,1721160639138,-500.0,0.00021917,2]
[332408307,1721160639149,-500.0,0.00021917,2]
[332408308,1721160639159,-500.0,0.00021917,2]
[332408309,1721160639169,-500.0,0.00021917,2]
[332408310,1721160639178,-500.0,0.00021917,2]
[332408311,1721160639193,-500.0,0.00021917,2]
[332408312,1721160639206,-7703.86,0.00021917,2]
[332408313,1721160639217,-500.0,0.00021917,2]
[332408314,1721160639226,-500.0,0.00021917,2]
[332408315,1721160639235,-1712.53,0.00021917,2]
[332408316,1721160639245,-500.0,0.00021917,2]
[332408317,1721160639254,-284.63967254,0.00021917,2]
[332408318,1721160639264,-500.0,0.00021917,2]
[332408319,1721160639275,-500.0,0.00021917,2]
[332408320,1721160639284,-500.0,0.00021917,2]
[332408321,1721160639294,-635.69,0.00021917,2]
[332408322,1721160639303,-500.0,0.00021917,2]
[332408323,1721160639313,-422.51473024,0.00021917,2]
[332408324,1721160639322,-500.0,0.00021917,2]
[332408325,1721160639331,-500.0,0.00021917,2]
[332408326,1721160639341,-500.0,0.00021917,2]
[332408327,1721160639350,-502.02241913,0.00021917,2]
[332408328,1721160639359,-151.0,0.00021917,2]
[332408329,1721160639368,-202.730824,0.00021917,2]
[332408330,1721160639378,-500.0,0.00021917,2]
[332408331,1721160639388,-805.49,0.00021917,2]
[332408332,1721160639397,-500.0,0.00021917,2]
[332408333,1721160639407,-500.0,0.00021917,2]
[332408334,1721160639416,-500.0,0.00021917,2]
[332408335,1721160639425,-500.0,0.00021917,2]
[332408336,1721160639436,-572.32425294,0.00021917,2]
[332408337,1721160639444,-500.0,0.00021917,2]
[332408338,1721160639453,-69.37987707,0.00021917,2]
[332408339,1721160639470,-430.62012293,0.00021917,2]
[332408340,1721160639480,-728.86,0.00021917,2]
[332408341,1721160639490,-500.0,0.00021917,2]
[332408342,1721160639499,-500.0,0.00021917,2]
[332408343,1721160639510,-500.0,0.00021917,2]
[332408344,1721160639520,-500.0,0.00021917,2]
[332408345,1721160639531,-500.0,0.00021917,2]
[332408346,1721160639541,-500.0,0.00021917,2]
[332408347,1721160639553,-872.95,0.00021917,2]
[332408348,1721160639563,-500.0,0.00021917,2]
[332408349,1721160639572,-500.0,0.00021917,2]
[332408350,1721160639581,-500.0,0.00021917,2]
[332408351,1721160639590,-500.0,0.00021917,2]
[332408352,1721160639600,-500.0,0.00021917,2]
[332408354,1721160639612,-500.0,0.00021917,2]
[332408356,1721160639622,-500.0,0.00021917,2]
[332408358,1721160639632,-500.0,0.00021917,2]
[332408360,1721160639642,-500.0,0.00021917,2]
[332408361,1721160639652,-500.0,0.00021917,2]
[332408363,1721160639662,-500.0,0.00021917,2]
[332408364,1721160639672,-500.0,0.00021917,2]
[332408366,1721160639683,-1145.0,0.00021917,2]
[332408367,1721160639694,-500.0,0.00021917,2]
[332408368,1721160639704,-500.0,0.00021917,2]
[332408369,1721160639715,-500.0,0.00021917,2]
[332408371,1721160639725,-500.0,0.00021917,2]
[332408373,1721160639734,-303.0925486,0.00021917,2]
[332408375,1721160639746,-196.9074514,0.00021917,2]
[332408376,1721160639756,-500.0,0.00021917,2]
[332408377,1721160639767,-500.0,0.00021917,2]
[332408379,1721160639777,-350.89272822,0.00021917,2]
[332408381,1721160639788,-500.0,0.00021917,2]
[332408383,1721160639798,-151.0,0.00021917,2]
[332408385,1721160639809,-151.0,0.00021917,2]
[332408387,1721160639818,-151.0,0.00021917,2]
[332408389,1721160639828,-151.0,0.00021917,2]
[332408391,1721160639846,-151.0,0.00021917,2]
[332408392,1721160639866,-246.940108,0.00021917,2]
[332408394,1721160639887,-500.0,0.00021917,2]
[332408396,1721160639908,-377.03958598,0.00021917,2]
[332408397,1721160639930,-500.0,0.00021917,2]
[332408398,1721160639954,-500.0,0.00021917,2]
[332408399,1721160639976,-500.0,0.00021917,2]
[332408400,1721160640000,-729.82,0.00021917,2]
[332408401,1721160640025,-500.0,0.00021917,2]
[332408402,1721160640047,-500.0,0.00021917,2]
[332408403,1721160640070,-600.75,0.00021917,2]
[332408404,1721160640083,-1710.75,0.00021917,2]
[332408405,1721160640094,-500.0,0.00021917,2]
[332408406,1721160640104,-500.0,0.00021917,2]
[332408407,1721160640113,-879.17,0.00021917,2]
[332408408,1721160640122,-256.94099089,0.00021917,2]
[332408409,1721160640133,-243.05900911,0.00021917,2]
[332408410,1721160640228,-500.0,0.00021917,2]
[332408411,1721160640239,-500.0,0.00021917,2]
[332408412,1721160640249,-110.71553439,0.00021917,2]
[332408413,1721160640264,-389.28446561,0.00021917,2]
[332408414,1721160640276,-9170.02071939,0.00021917,2]
[332408415,1721160640424,-249.993024,0.00021917,2]
[332408416,1721160640438,-13632.60625661,0.00021917,2]
[332408417,1721160640447,-500.0,0.00021917,2]
[332408418,1721160640456,-500.6,0.00021917,2]
[332408419,1721160640466,-500.0,0.00021917,2]
[332408420,1721160640475,-500.0,0.00021917,2]
[332408421,1721160640487,-500.0,0.00021917,2]
[332408422,1721160640497,-500.0,0.00021917,2]
[332408423,1721160640506,-500.0,0.00021917,2]
[332408424,1721160640517,-500.0,0.00021917,2]
[332408425,1721160640527,-500.0,0.00021917,2]
[332408426,1721160640538,-500.0,0.00021917,2]
[332408427,1721160640548,-4363.48973651,0.00021917,2]
[332408428,1721160640561,-6342.82026349,0.00021917,2]
[332408429,1721160640570,-500.0,0.00021917,2]
[332408430,1721160640581,-500.0,0.00021917,2]
[332408431,1721160640590,-1102.0,0.00021917,2]
[332408432,1721160640600,-500.0,0.00021917,2]
[332408433,1721160640610,-500.0,0.00021917,2]
[332408434,1721160640620,-500.0,0.00021917,2]
[332408435,1721160640630,-500.0,0.00021917,2]
[332408436,1721160640640,-500.0,0.00021917,2]
[332408437,1721160640650,-503.43097958,0.00021917,2]
[332408438,1721160640659,-548.83057198,0.00021917,2]
[332408439,1721160640669,-500.0,0.00021917,2]
[332408440,1721160640679,-500.0,0.00021917,2]
[332408441,1721160640691,-34.91818497,0.00021917,2]
[332408442,1721160640732,-411.33637595,0.00021916,2]
[332408443,1721160640743,-228.35433606,0.00021916,2]
[332408444,1721160640752,-75.09009612,0.00021917,2]
[332408491,1721160643915,-300.0,0.00021767,2]
[332408492,1721160643927,-300.0,0.00021916,2]
[332408493,1721160643937,-389.99171891,0.00021917,2]
[332408494,1721160643947,-311.95828109,0.00021917,2]
[332408504,1721160645963,-188.04171891,0.00021917,2]
[332408505,1721160645974,-500.0,0.00021917,2]
[332408506,1721160645984,-500.0,0.00021917,2]
[332408507,1721160645993,-500.0,0.00021917,2]
[332408508,1721160646004,-500.0,0.00021917,2]
[332408509,1721160646016,-500.0,0.00021917,2]
[332408510,1721160646028,-500.0,0.00021917,2]
[332408511,1721160646039,-1887.88,0.00021917,2]
[332408512,1721160646050,-500.0,0.00021917,2]
[332408513,1721160646060,-500.0,0.00021917,2]
[332408514,1721160646071,-500.0,0.00021917,2]
[332408515,1721160646080,-703.8,0.00021917,2]
[332408516,1721160646089,-500.0,0.00021917,2]
[332408517,1721160646102,-500.0,0.00021917,2]
[332408518,1721160646112,-500.0,0.00021917,2]
[332408519,1721160646122,-500.0,0.00021917,2]
[332408520,1721160646133,-500.0,0.00021917,2]
[332408521,1721160646143,-200.5132499,0.00021917,2]
[332408522,1721160646154,-500.0,0.00021917,2]
[332408523,1721160646163,-500.0,0.00021917,2]
[332408524,1721160646174,-500.0,0.00021917,2]
[332408525,1721160646184,-500.0,0.00021917,2]
[332408526,1721160646196,-500.0,0.00021917,2]
[332408527,1721160646207,-809.05,0.00021917,2]
[332408528,1721160646217,-500.0,0.00021917,2]
[332408529,1721160646226,-500.2,0.00021917,2]
[332408530,1721160646237,-500.0,0.00021917,2]
[332408531,1721160646247,-500.0,0.00021917,2]
[332408532,1721160646260,-500.0,0.00021917,2]
[332408533,1721160646270,-500.0,0.00021917,2]
[332408534,1721160646281,-245.02645153,0.00021917,2]
[332408535,1721160646290,-1433.03,0.00021917,2]
[332408536,1721160646301,-500.0,0.00021917,2]
[332408537,1721160646311,-500.0,0.00021917,2]
[332408538,1721160646321,-500.0,0.00021917,2]
[332408539,1721160646330,-525.20991421,0.00021917,2]
[332408540,1721160646343,-500.0,0.00021917,2]
[332408541,1721160646352,-829.26,0.00021917,2]
[332408542,1721160646362,-500.0,0.00021917,2]
[332408543,1721160646372,-500.0,0.00021917,2]
[332408544,1721160646381,-500.0,0.00021917,2]
[332408545,1721160646392,-500.0,0.00021917,2]
[332408546,1721160646402,-500.0,0.00021917,2]
[332408547,1721160646411,-500.0,0.00021917,4]
[332408548,1721160646422,-500.0,0.00021917,2]
[332408549,1721160646433,-500.0,0.00021917,2]
[332408550,1721160646444,-500.0,0.00021917,2]
[332408551,1721160646453,-500.0,0.00021917,2]
[332408552,1721160646463,-585.2,0.00021917,2]
[332408553,1721160646472,-2171.13,0.00021917,2]
[332408554,1721160646482,-166.666666,0.00021918,2]
[332408555,1721160646492,-151.0,0.00021923,2]
[332408556,1721160646504,-1577.34109698,0.0002199,3]
[332408557,1721160646514,-18966.8358014,0.00022,4]
[332408558,1721160646524,-248.1002,0.00022,2]
[332408559,1721160646534,-1000.0,0.00022,22]
[332408560,1721160646543,-150.112233,0.00022,5]
[332408561,1721160646553,-154.62117811,0.00022016,2]
[332408562,1721160646562,-308.03868957,0.00022016,2]
[332408563,1721160646572,-150.112233,0.000221,3]
[332408564,1721160646582,-151.0,0.00022104,2]
[332408565,1721160646592,-2728.219334,0.0002212,3]
[332408566,1721160646601,-7886.7054849,0.00022181,3]
[332408567,1721160646611,-500.0,0.0002219,2]
[332408568,1721160646721,-500.0,0.0002219,2]
[332408569,1721160646731,-312.71802095,0.0002219,2]
[332408570,1721160646741,-11763.38603368,0.00022191,5]
[332408571,1721160646750,-500.0,0.00022191,2]
[332408572,1721160646760,-500.0,0.00022191,2]
[332408573,1721160646770,-500.0,0.00022191,2]
[332408574,1721160646781,-500.0,0.00022191,2]
[332408575,1721160646792,-500.0,0.00022191,2]
[332408576,1721160646803,-500.0,0.00022191,2]
[332408577,1721160646813,-500.0,0.00022191,2]
[332408578,1721160646823,-414.62134284,0.00022191,2]
[332408579,1721160646832,-500.0,0.00022191,2]
[332408580,1721160646841,-500.0,0.00022191,2]
[332408581,1721160646851,-500.0,0.00022191,2]
[332408582,1721160646860,-500.0,0.00022191,2]
[332408583,1721160646870,-500.0,0.00022191,2]
[332408584,1721160646879,-500.0,0.00022191,2]
[332408585,1721160646888,-512.4639701,0.00022191,2]
[332408586,1721160646898,-500.0,0.00022191,2]
[332408587,1721160646907,-500.0,0.00022191,2]
[332408588,1721160646916,-500.0,0.00022191,2]
[332408589,1721160646925,-581.63403523,0.00022191,2]
[332408590,1721160646935,-500.0,0.00022191,2]
[332408591,1721160646945,-500.0,0.00022191,2]
[332408592,1721160646955,-500.0,0.00022191,2]
[332408593,1721160646964,-500.0,0.00022191,2]
[332408594,1721160646974,-500.0,0.00022191,2]
[332408595,1721160646983,-500.0,0.00022191,2]
[332408596,1721160646993,-504.427958,0.00022191,2]
[332408597,1721160647002,-500.0,0.00022191,2]
[332408598,1721160647012,-500.0,0.00022191,2]
[332408599,1721160647021,-500.0,0.00022191,2]
[332408600,1721160647031,-500.0,0.00022191,2]
[332408601,1721160647040,-500.0,0.00022191,2]
[332408602,1721160647050,-500.0,0.00022191,2]
[332408603,1721160647059,-500.0,0.00022191,2]
[332408604,1721160647068,-500.0,0.00022191,2]
[332408605,1721160647079,-500.0,0.00022191,2]
[332408606,1721160647088,-555.31493833,0.00022191,2]
[332408607,1721160647098,-500.0,0.00022191,2]
[332408608,1721160647107,-500.0,0.00022191,2]
[332408609,1721160647116,-500.0,0.00022191,2]
[332408610,1721160647126,-500.0,0.00022191,2]
[332408611,1721160647136,-500.0,0.00022191,2]
[332408612,1721160647145,-502.96931108,0.00022191,2]
[332408613,1721160647155,-500.0,0.00022191,2]
[332408614,1721160647165,-500.0,0.00022191,2]
[332408615,1721160647174,-287.558,0.00022191,2]
[332408616,1721160647183,-500.0,0.00022191,2]
[332408617,1721160647194,-512.02389022,0.00022191,2]
[332408618,1721160647210,-505.67942803,0.00022191,2]
[332408619,1721160647220,-500.0,0.00022191,2]
[332408620,1721160647229,-500.0,0.00022191,2]
[332408621,1721160647239,-500.0,0.00022191,2]
[332408622,1721160647250,-500.0,0.00022191,2]
[332408623,1721160647262,-500.0,0.00022191,2]
[332408624,1721160647275,-500.0,0.00022191,2]
[332408625,1721160647285,-500.0,0.00022191,2]
[332408626,1721160647294,-500.0,0.00022191,2]
[332408627,1721160647304,-500.0,0.00022191,2]
[332408628,1721160647315,-500.0,0.00022191,2]
[332408629,1721160647325,-382.78060605,0.00022191,2]
[332408633,1721160883451,171.92725803,0.00016255,2]
[332408636,1721160943753,426.06128921,0.00016255,2]
[332408637,1721160970440,11077.25610598,0.00016255,2]
[332408641,1721161029667,412.07328423,0.00016255,2]
[332408645,1721161465525,1204.32637926,0.00016255,2]
[332408648,1721161550150,-156.26261511,0.00018899,2]
[332408649,1721161550173,-197.47648542,0.00019069,2]
[332408650,1721161550193,-160.15762601,0.00019703,2]
[332408651,1721161550214,-23.92723746,0.0002,2]
[332408657,1721161648107,-300.0,0.00018898,2]
[332408658,1721161648133,-300.0,0.00018898,2]
[332408659,1721161648266,-1303.65750636,0.00018899,2]
[332408660,1721161649099,-455.0,0.00018899,2]
[332408662,1721161676524,17564.33910171,0.00016255,2]
[332408663,1721161704936,191.95460898,0.00016255,2]
[332408666,1721161785302,151.0,0.00019703,2]
[332408667,1721161785322,257.581564,0.00019703,2]
[332408668,1721161789366,191.30476359,0.000189,2]
[332408700,1721161832659,-26.41578354,0.000189,2]
[332408702,1721161832671,-467.98471646,0.00019703,2]
[332408732,1721161838252,-167.02247215,0.00019703,2]
[332408733,1721161838261,-204.36016703,0.0002,2]
[332408734,1721161838270,-180.320134,0.00020598,2]
[332408735,1721161838278,-163.781197,0.00020823,2]
[332408736,1721161838288,-14.78788573,0.0002099,2]
[332408737,1721161838309,-4795.54540667,0.0002099,2]
[332408738,1721161838319,-477.427487,0.00021096,2]
[332408739,1721161838329,-5.41422794,0.00021402,3]
[332408740,1721161838340,-154.58577206,0.00021402,3]
[332408741,1721161838349,-150.0,0.000218,2]
[332408742,1721161838358,-300.0,0.00021816,2]
[332408743,1721161838367,-152.0,0.00021816,2]
[332408744,1721161838376,-368.47993364,0.00021817,2]
[332408745,1721161838385,-889.43276407,0.00021817,2]
[332408746,1721161838394,-1613.90675186,0.000219,2]
[332408762,1721161843195,-1162.4396164,0.00019164,2]
[332408763,1721161843206,-166.34897099,0.000219,2]
[332408764,1721161843316,-2232.66891806,0.000219,2]
[332408765,1721161843325,-2545.18020908,0.00021907,3]
[332408766,1721161843335,-173.72364009,0.00021916,2]
[332408767,1721161843344,-500.0,0.00021917,2]
[332408769,1721161843354,-500.0,0.00021917,2]
[332408771,1721161843364,-171.27608925,0.00021917,2]
[332408772,1721161843376,-328.72391075,0.00021917,2]
[332408773,1721161843386,-500.0,0.00021917,2]
[332408774,1721161843396,-500.0,0.00021917,2]
[332408775,1721161843407,-500.0,0.00021917,2]
[332408778,1721161843417,-500.0,0.00021917,2]
[332408779,1721161843427,-500.0,0.00021917,2]
[332408780,1721161843436,-500.0,0.00021917,2]
[332408781,1721161843446,-174.48199737,0.00021917,2]
[332408790,1721161846195,-325.51800263,0.00021917,2]
[332408791,1721161846204,-500.0,0.00021917,2]
[332408792,1721161846214,-500.0,0.00021917,2]
[332408793,1721161846224,-500.0,0.00021917,2]
[332408794,1721161846234,-500.0,0.00021917,2]
[332408795,1721161846243,-500.0,0.00021917,2]
[332408796,1721161846252,-500.0,0.00021917,2]
[332408798,1721161846261,-500.0,0.00021917,2]
[332408800,1721161846271,-500.0,0.00021917,2]
[332408802,1721161846281,-500.0,0.00021917,2]
[332408804,1721161846290,-165.36743076,0.00021917,2]
[332408806,1721161846300,-478.14561855,0.00021917,2]
[332408809,1721161846313,-21.85438145,0.00021917,2]
[332408811,1721161846322,-500.0,0.00021917,2]
[332408813,1721161846332,-500.0,0.00021917,2]
[332408815,1721161846341,-500.0,0.00021917,2]
[332408817,1721161846351,-513.21474084,0.00021917,2]
[332408819,1721161846360,-500.0,0.00021917,2]
[332408821,1721161846369,-500.0,0.00021917,2]
[332408823,1721161846379,-500.0,0.00021917,2]
[332408825,1721161846388,-500.0,0.00021917,2]
[332408827,1721161846397,-500.88676213,0.00021917,2]
[332408829,1721161846406,-420.08316266,0.00021917,2]
[332408831,1721161846417,-500.0,0.00021917,2]
[332408833,1721161846426,-500.0,0.00021917,2]
[332408835,1721161846435,-500.0,0.00021917,2]
[332408837,1721161846444,-500.0,0.00021917,2]
[332408839,1721161846453,-500.0,0.00021917,2]
[332408841,1721161846462,-513.12136412,0.00021917,2]
[332408843,1721161846471,-30.8395888,0.00021917,2]
[332408845,1721161846485,-469.1604112,0.00021917,2]
[332408847,1721161846495,-500.0,0.00021917,2]
[332408850,1721161846506,-500.0,0.00021917,2]
[332408852,1721161846516,-200.0,0.00021917,2]
[332408854,1721161846526,-506.04600808,0.00021917,2]
[332408856,1721161846538,-1500.0,0.00021917,2]
[332408858,1721161846549,-500.0,0.00021917,2]
[332408860,1721161846559,-500.0,0.00021917,2]
[332408861,1721161846568,-1165.36,0.00021917,2]
[332408862,1721161846579,-500.0,0.00021917,2]
[332408863,1721161846589,-500.0,0.00021917,2]
[332408864,1721161846601,-500.0,0.00021917,2]
[332408865,1721161846611,-500.0,0.00021917,2]
[332408866,1721161846621,-500.0,0.00021917,2]
[332408867,1721161846630,-500.0,0.00021917,2]
[332408868,1721161846641,-500.0,0.00021917,2]
[332408869,1721161846651,-500.0,0.00021917,2]
[332408870,1721161846662,-503.81660779,0.00021917,2]
[332408871,1721161846672,-500.0,0.00021917,2]
[332408872,1721161846682,-500.0,0.00021917,2]
[332408873,1721161846692,-500.0,0.00021917,2]
[332408874,1721161846701,-500.0,0.00021917,2]
[332408875,1721161846711,-500.0,0.00021917,2]
[332408876,1721161846721,-500.0,0.00021917,2]
[332408877,1721161846731,-500.0,0.00021917,2]
[332408878,1721161846742,-500.0,0.00021917,2]
[332408879,1721161846752,-500.0,0.00021917,2]
[332408880,1721161846762,-500.0,0.00021917,2]
[332408881,1721161846771,-500.0,0.00021917,2]
[332408882,1721161846781,-500.0,0.00021917,2]
[332408883,1721161846791,-500.0,0.00021917,2]
[332408884,1721161846801,-500.0,0.00021917,2]
[332408885,1721161846811,-500.0,0.00021917,2]
[332408886,1721161846820,-1943.91,0.00021917,2]
[332408887,1721161846830,-500.0,0.00021917,2]
[332408888,1721161846844,-500.0,0.00021917,2]
[332408889,1721161846853,-500.0,0.00021917,2]
[332408890,1721161846864,-500.0,0.00021917,2]
[332408891,1721161846874,-860.91,0.00021917,2]
[332408892,1721161846885,-500.0,0.00021917,2]
[332408893,1721161846895,-172.13496854,0.00021917,2]
[332408894,1721161846905,-500.0,0.00021917,2]
[332408895,1721161846916,-500.0,0.00021917,2]
[332408896,1721161846926,-500.0,0.00021917,2]
[332408897,1721161846936,-500.0,0.00021917,2]
[332408898,1721161846945,-500.0,0.00021917,2]
[332408899,1721161846955,-500.0,0.00021917,2]
[332408900,1721161846966,-872.75,0.00021917,2]
[332408901,1721161846976,-500.0,0.00021917,2]
[332408902,1721161846986,-500.0,0.00021917,2]
[332408903,1721161846995,-500.0,0.00021917,2]
[332408904,1721161847005,-1642.35,0.00021917,2]
[332408905,1721161847016,-500.0,0.00021917,2]
[332408906,1721161847026,-500.0,0.00021917,2]
[332408907,1721161847036,-500.0,0.00021917,2]
[332408908,1721161847045,-500.0,0.00021917,2]
[332408909,1721161847055,-190.81208504,0.00021917,2]
[332408910,1721161847065,-500.0,0.00021917,2]
[332408911,1721161847075,-500.0,0.00021917,2]
[332408912,1721161847085,-517.06325331,0.00021917,2]
[332408913,1721161847096,-500.0,0.00021917,2]
[332408914,1721161847106,-500.0,0.00021917,2]
[332408915,1721161847115,-500.0,0.00021917,2]
[332408916,1721161847126,-500.0,0.00021917,2]
[332408917,1721161847136,-500.0,0.00021917,2]
[332408918,1721161847145,-90.15097199,0.00021917,2]
[332408927,1721162087553,171.92725803,0.00016255,2]
[332408930,1721162436785,507.84,0.00016255,2]
[332408933,1721162735127,-491.26895443,0.00019164,2]
[332408934,1721162751005,2496.3,0.00021,10]
[332408938,1721162827137,-522.84904634,0.00018899,2]
[332408940,1721162835091,-7.354504,0.00018899,2]
[332408941,1721162835113,-191.30476359,0.00018899,2]
[332408942,1721162835134,-182.77484663,0.00018899,2]
[332408943,1721162835155,-157.25454264,0.00018899,2]
[332408944,1721162835177,-195.14703142,0.00019817,2]
[332408945,1721162835201,-187.407999,0.0002,2]
[332408946,1721162835223,-132.50516152,0.00021,2]
[332408951,1721162962106,-1698.50064883,0.00019164,2]
[332408952,1721162995432,150.0,0.000189,2]
[332408953,1721163015454,1.0,0.00019164,2]
[332408954,1721163015475,156.12226042,0.00019164,2]
[332408955,1721163015495,211.04198957,0.00019164,2]
[332408956,1721163015515,191.30476359,0.00019164,2]
[332408977,1721163032271,-231.07146233,0.00019164,2]
[332408978,1721163032281,-1298.6533861,0.00020561,2]
[332408979,1721163032290,-167.619507,0.00020869,2]
[332408980,1721163032298,-300.0,0.00020999,2]
[332408981,1721163032307,-1085.5793858,0.00021,2]
[332409072,1721163042766,-3778.72551572,0.000189,2]
[332409074,1721163042775,-240.75597965,0.000189,2]
[332409075,1721163042786,-1624.18195241,0.000189,2]
[332409077,1721163042797,-3787.26449774,0.000189,2]
[332409078,1721163042807,-2110.17954756,0.000189,2]
[332409079,1721163042817,-453.556112,0.00021096,2]
[332409081,1721163042827,-150.61046228,0.00021445,2]
[332409083,1721163042836,-1522.56133464,0.000217,2]
[332409085,1721163042848,-713.08268266,0.000217,2]
[332409087,1721163042858,-778.25366857,0.000217,2]
[332409090,1721163042868,-195.8,0.000217,2]
[332409093,1721163042878,-1067.74095965,0.0002179,3]
[332409096,1721163042892,-968.40320763,0.0002179,3]
[332409098,1721163042901,-1230.27,0.0002179,3]
[332409101,1721163042910,-454.64170672,0.0002179,3]
[332409106,1721163043337,-160.49829328,0.0002179,3]
[332409107,1721163043348,-307.57,0.0002179,3]
[332409108,1721163043358,-153.78,0.0002179,3]
[332409109,1721163043368,-461.37,0.0002179,3]
[332409110,1721163043379,-500.0,0.00021799,2]
[332409111,1721163043388,-379.68623881,0.00021799,2]
[332409112,1721163043398,-213.66597142,0.00021799,2]
[332409113,1721163043407,-177.37561941,0.00021799,2]
[332409114,1721163043416,-175.45512991,0.00021799,2]
[332409115,1721163043425,-500.0,0.00021799,2]
[332409116,1721163043434,-500.0,0.00021799,2]